Cogmind - Beta 13 @@@ ROGUE MODE // 2024.05.18 @ 14:54:34 Player: Flamey Result: Destroyed by as-20108 with Assembled Heavy Rifle Performance ------------- Evolutions (0) 0 Regions Visited (2) 400 Robots Destroyed (17) 85 Value Destroyed (498) 498 Prototype IDs (0) 0 Alien Tech Used (0) 0 Bonus (0) 0 TOTAL SCORE: 983 Bonus ------- None Cogmind --------- Core Integrity 0/250 Matter 249/300 Energy 100/100 System Corruption 6% Temperature Warning (392) Movement Core (700) Ox13 Location -10/Mines Parts ------- > --- POWER (1) -------- (None) > --- PROPULSION (2) --- (None) > --- UTILITY (2) ------ High-capacity Storage Unit > --- WEAPON (2) ------- (None) > --- INVENTORY (20) --- Improved Heat Sink Improved Heat Sink Medium Matter Pod (85) Medium Matter Pod (100) Light Armor Plating Light Armor Plating Beam Cannon Grenade Launcher Peak State ------------ > --- POWER ------------ Light Nuclear Core > --- PROPULSION ------- Light Treads Light Treads > --- UTILITY ---------- High-capacity Storage Unit Medium Matter Pod > --- WEAPON ----------- Beam Cannon Grenade Launcher > --- INVENTORY -------- Light Treads Improved Heat Sink Improved Heat Sink Medium Matter Pod Light Armor Plating Beam Cannon [Rating: 10] Favorites ----------- Power Ion Engine Engine Ion Engine Power Core Light Nuclear Core Propulsion Light Treads Treads Light Treads Utility Medium Matter Pod Device Improved Heat Sink Storage Medium Matter Pod Protection Light Armor Plating Weapon Assault Rifle Energy Cannon Beam Cannon Ballistic Gun Assault Rifle Launcher Grenade Launcher Special Melee Weapon Datajack Build | -11 -10 -10 ------- Run | Yrd Mat Min Slots Evolved . | . . . Power . | . . . Propulsion . | . . . Utility . | . . . Weapon . | . . . Parts Attached 25 | 7 14 4 Power 3 | 1 2 . Engine 2 | 1 1 . Core 1 | . 1 . Reactor . | . . . Propulsion 3 | 2 . 1 Treads 3 | 2 . 1 Leg . | . . . Wheel . | . . . Hover . | . . . Flight . | . . . Utility 11 | 1 8 2 Device 2 | . 2 . Storage 6 | 1 5 . Processor . | . . . Hackware . | . . . Protection 3 | . 1 2 Artifact . | . . . Weapon 8 | 3 4 1 Energy Gun . | . . . Energy Cannon 2 | . 2 . Ballistic Gun 4 | 3 . 1 Ballistic Cannon . | . . . Launcher 1 | . 1 . Special Weapon . | . . . Impact Weapon . | . . . Slashing Weapon . | . . . Piercing Weapon . | . . . Special Melee Weapon 1 | . 1 . Unidentified Prototypes . | . . . Parts Lost 8 | . 1 7 Power 1 | . . 1 Propulsion 3 | . . 3 Utility 1 | . . 1 Weapon 3 | . 1 2 Highest Loss Streak 7 | . 1 7 To Critical Strikes . | . . . Average Slot Usage (%) 98 | . 98 97 Engine 7 | . 10 . Core 5 | . 3 13 Treads 27 | . 28 26 Device 2 | . 3 . Storage 22 | . 22 21 Protection 2 | . . 7 Energy Cannon 7 | . 5 14 Ballistic Gun 6 | . 7 . Launcher 9 | . 8 13 Special Melee Weapon 4 | . 5 . Naked Turns . | . . . Heaviest Build 54 | 14 53 54 Greatest Support 40 | 40 40 40 Greatest Overweight (x) 15 | . 1 15 Average Overweight (x) . | . . 1 Largest Inventory Capacity 20 | 8 20 20 Average Capacity 12 | 7 14 20 Most Carried 9 | 4 7 9 Average Carried 3 | 1 4 6 Final Capacity 20 | 8 20 20 Final Carried 8 | 2 4 8 Class Distribution -------------------- 100% | Mutant Dominant Class ---------------- Mutant | -10/Materials Mutant | -10/Mines Resources | -11 -10 -10 ----------- Run | Yrd Mat Min Matter Collected 849 | 228 478 143 Remotely . | . . . Salvage Created 594 | . 488 106 Parts 34 | . 30 4 Haulers Intercepted . | . . . Recyclers Shooed 1 | . 1 . Parts Field Recycled . | . . . Retrieved Matter . | . . . Parts Self-Destructed . | . . . Prevented . | . . . Kills | -11 -10 -10 ------- Run | Yrd Mat Min Combat Hostiles Destroyed 18 | . 11 7 Guns 5 | . 5 . Cannons 1 | . . 1 AOE 12 | . 6 6 Classes Destroyed 5 | . 3 2 Worker 4 | . 2 2 Recycler 1 | . 1 . Grunt 11 | . 11 . Sentry 1 | . . 1 Assembled 6 | . . 6 Best Kill Streak 8 | . 5 8 Combat Bots Only 6 | . 3 6 Max Kills in Single Turn 3 | . 3 3 Gunslinging . | . . . Exploded 3 | . 2 3 Melee . | . . . Uniques/NPCs Destroyed . | . . . Combat | -11 -10 -10 -------- Run | Yrd Mat Min Hostile Shots Fired 108 | . 45 63 Missed 24 | . 11 13 Damage Taken 1235 | . 467 768 Core 267 | . 55 212 Absorbed by Shields . | . . . Core Remaining (%) 100 | 100 . . Volleys Fired 46 | . 31 15 Largest 2 | . 2 2 Hottest 90 | . 40 90 Shots Fired 70 | . 50 20 Gun 40 | . 38 2 Cannon 11 | . . 11 Launcher 19 | . 12 7 Special . | . . . Kinetic 40 | . 38 2 Thermal 11 | . . 11 Explosive 19 | . 12 7 Electromagnetic . | . . . Robot Hit Streak 6 | . 6 3 Robot Miss Streak 5 | . 3 5 Penetration Max . | . . . Secondary Targets . | . . . Shots Hit Robots 34 | . 27 7 Core Hits 46 | . 29 17 Critical Kills . | . . . Critical Parts Destroyed . | . . . Critical Strikes . | . . . Melee Attacks 1 | . 1 . Impact . | . . . Slashing . | . . . Piercing . | . . . Sneak Attacks 1 | . 1 . Combat Hostiles . | . . . Follow-up Attacks . | . . . Damage Inflicted 1288 | 4 713 571 Guns 254 | . 239 15 Cannons 85 | . . 85 Explosions 936 | . 465 471 Melee . | . . . Ramming 13 | 4 9 . Kinetic 254 | . 239 15 Thermal 85 | . . 85 Explosive 936 | . 465 471 Electromagnetic . | . . . Impact . | . . . Slashing . | . . . Piercing . | . . . Highest Corruption 6 | . . 6 Average Corruption 5 | . . 5 Corruption Purged . | . . . Corruption Blocked . | . . . Effects 1 | . . 1 Heat Flow Errors 1 | . . 1 Overload Shots . | . . . Overflow Damage 1 | . . 1 Projectiles . | . . . Explosions 1 | . . 1 Melee . | . . . Knockbacks 1 | . 1 . Impact 1 | . 1 . Kinetic . | . . . Secondary . | . . . Self-Inflicted Damage 96 | . 54 42 Shots 6 | . 3 3 Rammed 2 | 1 1 . Targets Rammed 2 | 1 1 . Kicked . | . . . Crushed . | . . . Highest Temperature 478 | . 8 478 Average Temperature 176 | . 2 230 Received Heat Transfer 654 | . 225 429 Effects 8 | . . 8 Shutdowns 1 | . . 1 Interference 2 | . . 2 Short Circuit 1 | . . 1 Damage (minor) 1 | . . 1 Damage (major) 3 | . . 3 Siege Activations . | . . . Robots Corrupted . | . . . Combat Hostiles . | . . . Parts Fried . | . . . Impact Corruptions . | . . . Robots Melted . | . . . Combat Hostiles . | . . . Parts Melted . | . . . Heat Transferred 185 | . . 185 Parts Sabotaged . | . . . Parts Stolen . | . . . Parts Stripped . | . . . Power Chain Reactions . | . . . Alert | -11 -10 -10 ------- Run | Yrd Mat Min Peak Influence 153 | . 153 68 Initial 21 | . . 21 Average 36 | . 62 46 Maximum Alert Level . | . . . Low Security (%) 100 | 100 100 100 Level 1 . | . . . Level 2 . | . . . Level 3 . | . . . Level 4 . | . . . Level 5 . | . . . High Security . | . . . Max Security . | . . . Squads Dispatched 3 | . 3 . Investigation 2 | . 2 . Extermination . | . . . Reinforcement 1 | . 1 . Assault . | . . . Garrison . | . . . Intercept . | . . . Searches Triggered . | . . . Construction Impeded . | . . . Haulers Reinforced . | . . . Active Scanning Responses . | . . . Cargo Convoy Interrupts . | . . . Stealth | -11 -10 -10 --------- Run | Yrd Mat Min Distress Signals 1 | . 1 . Communications Jammed . | . . . Distress Signals . | . . . Times Spotted 36 | . 19 17 Peak Tracking Total 9 | . 4 9 Tactical Retreats 1 | . . 1 Traps | -11 -10 -10 ------- Run | Yrd Mat Min Traps Triggered . | . . . Indirectly . | . . . Trap Hack Attempts . | . . . Triggered . | . . . Disarmed . | . . . Reprogrammed . | . . . Reused . | . . . Traps Extracted . | . . . Installed . | . . . Triggered . | . . . Machines | -11 -10 -10 ---------- Run | Yrd Mat Min Machines Disabled 4 | . 3 1 Max in Single Turn 1 | . 1 1 Machines Repaired . | . . . Machines Dismantled . | . . . Machines Sabotaged . | . . . Overloaded Fab Kills . | . . . Hacking | -11 -10 -10 --------- Run | Yrd Mat Min Machines Accessed 2 | . 2 . Terminals 1 | . 1 . Fabricators . | . . . Repair Stations . | . . . Recycling Units 1 | . 1 . Scanalyzers . | . . . Garrison Access . | . . . Total Hacks 6 | . 6 . Successful 5 | . 5 . Failed 1 | . 1 . Catastrophic . | . . . Database Lockouts . | . . . Manual . | . . . Terminals 3 | . 3 . Fabricators . | . . . Repair Stations . | . . . Recycling Units 3 | . 3 . Scanalyzers . | . . . Garrison Access . | . . . Terminal Hacks 2 | . 2 . Record 1 | . 1 . Alert Level 1 | . 1 . Fabricator Hacks . | . . . Repair Station Hacks . | . . . Recycling Unit Hacks 3 | . 3 . Recycle Component 2 | . 2 . Process 1 | . 1 . Scanalyzer . | . . . Garrison Access Hacks . | . . . Unauthorized Hacks . | . . . Terminals . | . . . Fabricators . | . . . Repair Stations . | . . . Recycling Units . | . . . Scanalyzers . | . . . Garrison Access . | . . . Data Cores Recovered . | . . . Used . | . . . Hacking Detections 2 | . 2 . Full Trace Events 2 | . 2 . Feedback Events . | . . . Feedback Blocked . | . . . Robot Schematics Acquired . | . . . Robots Built . | . . . Authchips . | . . . Time . | . . . Total Robot Build Rating . | . . . Part Schematics Acquired . | . . . Parts Built . | . . . Authchips . | . . . Time . | . . . Total Part Build Rating . | . . . Parts Repaired . | . . . Time . | . . . Parts Recycled 2 | . 2 . Recycled Matter 43 | . 43 . Retrieved Matter . | . . . Retrieved Components . | . . . Parts Scanalyzed . | . . . Part Schematics Acquired . | . . . Parts Damaged . | . . . Bothacking | -11 -10 -10 ------------ Run | Yrd Mat Min Used RIF Installer . | . . . Robots Hacked . | . . . Non-combat . | . . . Combat . | . . . Robot Hacks Applied . | . . . Relay Couplers Released . | . . . Fabnet Peak Effective % . | . . . Robots Rewired . | . . . Allies Hacked . | . . . Hacks Repelled . | . . . Allies | -11 -10 -10 -------- Run | Yrd Mat Min Total Allies . | . . . Largest Group . | . . . Highest-Rated Group . | . . . Highest-Rated Ally . | . . . Total Orders . | . . . Ally Attacks . | . . . Total Damage . | . . . Kills . | . . . Allies Corrupted . | . . . Allies Melted . | . . . Intel | -11 -10 -10 ------- Run | Yrd Mat Min Robot Analysis Total . | . . . Derelict Logs Recovered 1 | . . 1 Drone Launches . | . . . Drone Recoveries . | . . . Exploration | -11 -10 -10 ------------- Run | Yrd Mat Min Turns Passed 3155 | 1216 1473 466 Spaces Moved 1254 | 414 668 172 Core 17 | 15 . 2 Treads 1237 | 399 668 170 Legs . | . . . Wheels . | . . . Hover . | . . . Flight . | . . . Fastest Speed 50 | 50 160 240 Average Speed 193 | 156 202 247 Slowest Speed 800 | 160 240 800 Overloaded Moves . | . . . Propulsion Burnouts . | . . . Robots Hopped . | . . . Cave-ins Triggered . | . . . Exploration Rate (%) 46 | 34 75 31 Regions Visited 2 Branch Regions 1 Pre-discovered Areas 1 | . . 1 Known Exits Taken . | . . . Unknown Exits Taken 2 | 1 1 . Scrap Searched 1 | . . 1 Spaces Dug . | . . . Terrain Destroyed 95 | . 57 38 Melee . | . . . Projectile . | . . . AOE 95 | . 57 38 Terrain Rammed . | . . . Walls Destroyed . | . . . Machines Disabled . | . . . Actions | -11 -10 -10 --------- Run | Yrd Mat Min Total 1915 | 983 736 196 Wait 554 | 554 . . Move 1252 | 413 667 172 Hop . | . . . Pick Up 27 | 8 14 5 Fast Attach . | . . . Attach 9 | 6 2 1 Detach . | . . . Swap 16 | 1 12 3 Drop 8 | . 8 . Fire 46 | . 31 15 Melee 1 | . 1 . Ram . | . . . Kick . | . . . Crush 2 | 1 1 . Escape Stasis . | . . . Rewire . | . . . Trap . | . . . Miscellaneous . | . . . Route ------- -11/Scrapyard -10/Materials (discovered 3 exits: [*Mat x2] / [*Min]) -10/Mines (discovered 2 exits: [*Mat] / Sub) History --------- Turn | Location | Event 7 | -11/Scrapyard | Discovered new exit (range 15) 1217 | -11/Scrapyard | Entered Materials 1218 | -10/Materials | Build established: Mutant 1765 | -10/Materials | Discovered new exit (range 10) 1926 | -10/Materials | Discovered new exit (range 15) 2241 | -10/Materials | Discovered new exit (range 15) 2690 | -10/Materials | Entered Mines 2711 | -10/Mines | Learned location of Storage (-8) 2770 | -10/Mines | Discovered new exit (range 5) 2803 | -10/Mines | Joined a pair of Derelicts in attacking an 0b10 outpost 2953 | -10/Mines | Identified exit to Subcaves 3089 | -10/Mines | Assembled infested the area 3147 | -10/Mines | Core integrity fell below 50% 3154 | -10/Mines | Core integrity fell below 20% 3156 | -10/Mines | Destroyed by as-20108 with Assembled Heavy Rifle Last Messages --------------- Overheating: Short circuit. Lgt. Nuclear Core destroyed. Lgt. Treads destroyed. System corrupted by crushing effect (+5). U-05 Engineer lays Concrete. Overheating: System interference. Assault Rifle temporarily disabled. U-05 Engineer lays Concrete. Lgt. Treads destroyed. System corrupted by crushing effect (+1). U-05 Engineer lays Concrete. System corrupted: Heat flow error (+237). U-05 Engineer destroyed. Overheating: Hcp. Storage Unit damaged (-245). Overheating: Hcp. Storage Unit damaged (-87). Overheating: Beam Cannon damaged (-17). Overheating: Lgt. Armor Plating damaged (-19). Lgt. Armor Plating destroyed. Assault Rifle destroyed. Beam Cannon destroyed. Map ----- +----------------------------------------------------+ | ?????????????????????????????????????????????????? | | ?????????????????????????????????????????????????? | | ?????????????????????????????????????????????????? | | ?????????????????????????????????????????????????? | | ?????????????????????????????????????????????????? | | ?????????????????????????????????????????????????? | | ?????????????????????????????????????????????????? | | ?????????????????????????????????????????????????? | | ???????????????????????????????##????????????????? | | ??????????????????????????????* ?????????????????? | | ?????????????????????????????? #?????????????????? | | ???????????????????????#####? #?????????????????? | | ??????????????????????## ## #?????????????????? | | ??????????????????????# # #?????????????????? | | ??????????????????#??## ##????????????????? | | ??????????????????# ?# ##???????????????? | | ??????????????????# ## #???????????????? | | ??????????????????# a #????????????????? | | ??????????????????# a #??????????????????? | | ????????????????????## ! #??????????????????? | | ????????????????????# % * ##?????????????????? | | ????????????????????# %% #????????? ?????? | | ????????????????????# !%a % #????????# ????? | | ????????????????????## a=** #???????# ????? | | ?????????????????????## ######?# ????? | | ??????????????????????## @ ## ?????? | | ???????????????????????### a ?????? | | ?????????????????????????# a ??????? | | ?????????????????????##### ##????????? | | ????????????????????## ##?????????? | | ????????????????????# ##???###????? | | ???????????????????## ##??## ##???? | | ?????????????????### ##???# #???? | | ????????????????## #???## #???? | | ????????????????# ##?## #????? | | ????????????????# ### #?????? | | ????????????????## #?####? | | ?????????????????## ## ## #### ## | | ??????????????????## ### #### #### # | | ???????????????????## #?# #??#########?# | | ???????###??####????# #?## #???????????# | | ????######### ###### #??### #?????????## | | ???## ## [## < #????## #??????### | | ???# # # ######## #?????## ### | | ???# # + ####???### ##?## | | ???## # + ### ######## #???? | | ???# # /[ # ##?######### ! #???? | | ???# ##[|## ##??????????######### ##???? | | ???######## #???????????????????## ##????? | | ???????##### #????????????????????#######?????? | +----------------------------------------------------+ Best States ------------- Heat Dissipation 39 Energy Generation 14 Energy Capacity 250 Matter Stores 400 Matter Capacity 400 Sight Range 16 Terrain Scan Density 10 Armor Coverage 150 Evasion (%) 50 Recoil Reduction 2 Item Schematics ----------------- None Robot Schematics ------------------ None Fabricated ------------ Nothing Alien Tech Used ----------------- None Achievements -------------- None Challenges ------------ None Game ------ Seed ServoTerrabombSheargun Manual? 0 Play Time 00:22:07 Cumulative 2.1 hours Start 2024.05.17 @ 19:45:12 End 2024.05.18 @ 14:54:34 Sessions 6 Manual Loads 0 Difficulty Rogue Special Mode None Game No. 4 Rogue 4 Adventurer 0 Explorer 0 Win Type - Total 0 Types 0/0/0/0/0/0/0/0/0 Lore% 0 Gallery% 5 Achievement% 5 Wizard Run 0 Options --------- Layout 1 ASCII 0 Keyboard 0 Movement Arrows Keybinds 0 Fullscreen 1 Font 24/Terminus Map View 50x35 Zoom Use 0% Tactical HUD 0 Map Filters NONE Filters NONE Steam 1 RUN: 2b822d18-e66b-4ff5-b1bd-db6b2409bc49